Cogmind - Beta 13 @@@ ROGUE MODE // 2024.06.13 @ 16:37:48 Player: Comet Result: Self-destructed Performance ------------- Evolutions (1) 500 Regions Visited (2) 400 Robots Destroyed (33) 165 Value Destroyed (577) 577 Prototype IDs (0) 0 Alien Tech Used (0) 0 Bonus (0) 0 TOTAL SCORE: 1642 Bonus ------- None Cogmind --------- Core Integrity 121/400 Matter 300/300 Energy 100/100 System Corruption 2% Temperature Cool (0) Movement Core (700) Ox13 Location -9/Materials Parts ------- > --- POWER (1) -------- (None) > --- PROPULSION (2) --- (None) > --- UTILITY (2) ------ High-capacity Storage Unit > --- WEAPON (4) ------- (None) > --- INVENTORY (20) --- Light Ion Engine Armored Treads Armored Treads Armored Treads Armored Treads Medium Storage Unit High-capacity Battery (250) Improved Terrain Scanner Seismic Detector Light Armor Plating Reactive Plating Reactive Plating Reactive Plating Reactive Plating Peak State ------------ > --- POWER ------------ Ion Engine > --- PROPULSION ------- Wheel Compact Wheel > --- UTILITY ---------- High-capacity Storage Unit Light Armor Plating > --- WEAPON ----------- Shock Rifle Shock Rifle Shock Rifle Shock Rifle > --- INVENTORY -------- Ion Engine Light Ion Engine Armored Treads Armored Treads Armored Treads Armored Treads Medium Storage Unit High-capacity Battery Improved Terrain Scanner Seismic Detector Light Armor Plating Reactive Plating Reactive Plating Reactive Plating Light Assault Rifle [Rating: 20] Favorites ----------- Power Light Ion Engine Engine Light Ion Engine Propulsion Light Treads Treads Light Treads Wheel Compact Wheel Utility Light Armor Plating Device Heat Sink Storage Small Storage Unit Protection Light Armor Plating Weapon Assault Rifle Energy Gun Shock Rifle Ballistic Gun Assault Rifle Build | -11 -10 -9 ------- Run | Yrd Mat Mat Slots Evolved 2 | . . 2 Power . | . . . Propulsion . | . . . Utility . | . . . Weapon 2 | . . 2 Parts Attached 24 | 7 10 7 Power 4 | 1 2 1 Engine 4 | 1 2 1 Core . | . . . Reactor . | . . . Propulsion 4 | 2 2 . Treads 2 | 2 . . Leg . | . . . Wheel 2 | . 2 . Hover . | . . . Flight . | . . . Utility 5 | 1 4 . Device 1 | . 1 . Storage 3 | 1 2 . Processor . | . . . Hackware . | . . . Protection 1 | . 1 . Artifact . | . . . Weapon 11 | 3 2 6 Energy Gun 6 | 1 1 4 Energy Cannon . | . . . Ballistic Gun 5 | 2 1 2 Ballistic Cannon . | . . . Launcher . | . . . Special Weapon . | . . . Impact Weapon . | . . . Slashing Weapon . | . . . Piercing Weapon . | . . . Special Melee Weapon . | . . . Unidentified Prototypes . | . . . Parts Lost 11 | . . 11 Power 2 | . . 2 Propulsion 2 | . . 2 Utility 1 | . . 1 Weapon 6 | . . 6 Highest Loss Streak 11 | . . 11 To Critical Strikes . | . . . Average Slot Usage (%) 92 | . 96 73 Engine 13 | . 14 8 Treads 21 | . 25 . Wheel 4 | . 2 17 Device 2 | . 2 . Storage 13 | . 14 11 Protection 7 | . 7 6 Energy Gun 6 | . 3 24 Ballistic Gun 21 | . 24 4 Naked Turns . | . . . Heaviest Build 60 | 11 51 60 Greatest Support 40 | 40 40 26 Greatest Overweight (x) 2 | . 1 2 Average Overweight (x) . | . . 1 Largest Inventory Capacity 20 | 8 20 20 Average Capacity 11 | 7 9 20 Most Carried 16 | 6 9 16 Average Carried 8 | 3 7 14 Final Capacity 20 | 8 20 20 Final Carried 14 | 6 8 14 Class Distribution -------------------- 92% | Mutant 7% | Tank Dominant Class ---------------- Mutant | -10/Materials Tank | -9/Materials Resources | -11 -10 -9 ----------- Run | Yrd Mat Mat Matter Collected 772 | 226 473 73 Remotely . | . . . Salvage Created 1104 | 137 771 196 Parts 70 | 11 49 10 Haulers Intercepted 2 | . 2 . Recyclers Shooed 3 | 1 2 . Parts Field Recycled . | . . . Retrieved Matter . | . . . Parts Self-Destructed . | . . . Prevented . | . . . Kills | -11 -10 -9 ------- Run | Yrd Mat Mat Combat Hostiles Destroyed 21 | . 15 6 Guns 19 | . 15 4 Classes Destroyed 10 | 2 7 1 Worker 1 | . 1 . Builder 1 | . 1 . Tunneler 3 | 3 . . Hauler 2 | . 2 . Recycler 3 | 1 2 . Operator 1 | . 1 . Watcher 1 | . 1 . Swarmer 10 | . 6 4 Grunt 9 | . 9 . Sentry 2 | . . 2 Best Kill Streak 6 | 2 6 5 Combat Bots Only 5 | . 3 5 Max Kills in Single Turn 1 | 1 1 1 Gunslinging . | . . . Exploded . | . . . Melee . | . . . Uniques/NPCs Destroyed . | . . . Combat | -11 -10 -9 -------- Run | Yrd Mat Mat Hostile Shots Fired 171 | . 70 101 Missed 42 | . 20 22 Damage Taken 1588 | 36 489 1063 Core 376 | . 97 279 Absorbed by Shields . | . . . Core Remaining (%) 80 | 100 61 . Volleys Fired 93 | 7 59 27 Largest 4 | 2 2 4 Hottest 200 | 60 60 200 Shots Fired 174 | 14 118 42 Gun 174 | 14 118 42 Cannon . | . . . Launcher . | . . . Special . | . . . Kinetic 137 | 10 116 11 Thermal 2 | . 2 . Explosive . | . . . Electromagnetic 35 | 4 . 31 Robot Hit Streak 15 | 8 10 15 Robot Miss Streak 4 | 1 4 3 Penetration Max . | . . . Secondary Targets 4 | . 4 . Max Gunslinging Chain 1 | . 1 . Shots Hit Robots 116 | 10 77 29 Core Hits 50 | 6 37 7 Critical Kills . | . . . Critical Parts Destroyed . | . . . Critical Strikes . | . . . Melee Attacks . | . . . Impact . | . . . Slashing . | . . . Piercing . | . . . Sneak Attacks . | . . . Combat Hostiles . | . . . Follow-up Attacks . | . . . Damage Inflicted 1536 | 131 954 451 Guns 1450 | 103 954 393 Cannons . | . . . Explosions 76 | 28 . 48 Melee . | . . . Ramming 10 | . . 10 Kinetic 1051 | 48 943 60 Thermal 87 | 28 11 48 Explosive . | . . . Electromagnetic 388 | 55 . 333 Impact . | . . . Slashing . | . . . Piercing . | . . . Highest Corruption 2 | . . 2 Average Corruption 2 | . . 2 Corruption Purged . | . . . Corruption Blocked . | . . . Overload Shots . | . . . Overflow Damage 17 | . . 17 Projectiles . | . . . Explosions 17 | . . 17 Melee . | . . . Knockbacks . | . . . Impact . | . . . Kinetic . | . . . Secondary . | . . . Self-Inflicted Damage 82 | 36 . 46 Shots 2 | 1 . 1 Rammed 5 | . . 5 Targets Rammed 5 | . . 5 Kicked . | . . . Crushed . | . . . Highest Temperature 390 | 22 18 390 Average Temperature 165 | 13 7 215 Received Heat Transfer 540 | . 198 342 Effects 1 | . . 1 Interference 1 | . . 1 Siege Activations . | . . . Robots Corrupted 2 | . . 2 Combat Hostiles 2 | . . 2 Parts Fried 4 | 1 . 3 Impact Corruptions . | . . . Robots Melted . | . . . Combat Hostiles . | . . . Parts Melted . | . . . Heat Transferred 125 | . 25 100 Parts Sabotaged . | . . . Parts Stolen . | . . . Parts Stripped . | . . . Power Chain Reactions 2 | 1 . 1 Alert | -11 -10 -9 ------- Run | Yrd Mat Mat Peak Influence 340 | 20 340 186 Initial 51 | . 13 51 Average 149 | 10 180 113 Maximum Alert Level 1 | . 1 . Low Security (%) 68 | 100 56 100 Level 1 31 | . 43 . Level 2 . | . . . Level 3 . | . . . Level 4 . | . . . Level 5 . | . . . High Security . | . . . Max Security . | . . . Squads Dispatched 4 | . 4 . Investigation 3 | . 3 . Extermination . | . . . Reinforcement 1 | . 1 . Assault . | . . . Garrison . | . . . Intercept . | . . . Searches Triggered . | . . . Construction Impeded . | . . . Haulers Reinforced . | . . . Active Scanning Responses . | . . . Cargo Convoy Interrupts . | . . . Stealth | -11 -10 -9 --------- Run | Yrd Mat Mat Distress Signals 1 | . 1 . Communications Jammed . | . . . Distress Signals . | . . . Times Spotted 25 | . 18 7 Peak Tracking Total 6 | . 4 6 Tactical Retreats 1 | . 1 . Traps | -11 -10 -9 ------- Run | Yrd Mat Mat Traps Triggered 2 | . 2 . Indirectly . | . . . Trap Hack Attempts . | . . . Triggered . | . . . Disarmed . | . . . Reprogrammed . | . . . Reused . | . . . Traps Extracted . | . . . Installed . | . . . Triggered . | . . . Machines | -11 -10 -9 ---------- Run | Yrd Mat Mat Machines Disabled . | . . . Max in Single Turn . | . . . Machines Repaired . | . . . Machines Dismantled . | . . . Machines Sabotaged . | . . . Overloaded Fab Kills . | . . . Hacking | -11 -10 -9 --------- Run | Yrd Mat Mat Machines Accessed 1 | . 1 . Terminals 1 | . 1 . Fabricators . | . . . Repair Stations . | . . . Recycling Units . | . . . Scanalyzers . | . . . Garrison Access . | . . . Total Hacks 5 | . 5 . Successful 2 | . 2 . Failed 3 | . 3 . Catastrophic . | . . . Database Lockouts . | . . . Manual 5 | . 5 . Terminals 5 | . 5 . Fabricators . | . . . Repair Stations . | . . . Recycling Units . | . . . Scanalyzers . | . . . Garrison Access . | . . . Terminal Hacks 2 | . 2 . Part Schematic 2 | . 2 . Fabricator Hacks . | . . . Repair Station Hacks . | . . . Recycling Unit Hacks . | . . . Scanalyzer . | . . . Garrison Access Hacks . | . . . Unauthorized Hacks . | . . . Terminals . | . . . Fabricators . | . . . Repair Stations . | . . . Recycling Units . | . . . Scanalyzers . | . . . Garrison Access . | . . . Data Cores Recovered . | . . . Used . | . . . Hacking Detections 1 | . 1 . Full Trace Events 1 | . 1 . Feedback Events . | . . . Feedback Blocked . | . . . Robot Schematics Acquired . | . . . Robots Built . | . . . Authchips . | . . . Time . | . . . Total Robot Build Rating . | . . . Part Schematics Acquired 2 | . 2 . Parts Built . | . . . Authchips . | . . . Time . | . . . Total Part Build Rating . | . . . Parts Repaired . | . . . Time . | . . . Parts Recycled . | . . . Recycled Matter . | . . . Retrieved Matter . | . . . Retrieved Components . | . . . Parts Scanalyzed . | . . . Part Schematics Acquired . | . . . Parts Damaged . | . . . Bothacking | -11 -10 -9 ------------ Run | Yrd Mat Mat Used RIF Installer . | . . . Robots Hacked . | . . . Non-combat . | . . . Combat . | . . . Robot Hacks Applied . | . . . Relay Couplers Released . | . . . Fabnet Peak Effective % . | . . . Robots Rewired . | . . . Allies Hacked . | . . . Hacks Repelled . | . . . Allies | -11 -10 -9 -------- Run | Yrd Mat Mat Total Allies . | . . . Largest Group . | . . . Highest-Rated Group . | . . . Highest-Rated Ally . | . . . Total Orders . | . . . Ally Attacks . | . . . Total Damage . | . . . Kills . | . . . Allies Corrupted . | . . . Allies Melted . | . . . Intel | -11 -10 -9 ------- Run | Yrd Mat Mat Robot Analysis Total . | . . . Derelict Logs Recovered . | . . . Drone Launches . | . . . Drone Recoveries . | . . . Exploration | -11 -10 -9 ------------- Run | Yrd Mat Mat Turns Passed 1311 | 158 960 193 Spaces Moved 624 | 78 481 65 Core 5 | 5 . . Treads 486 | 73 413 . Legs . | . . . Wheels 133 | . 68 65 Hover . | . . . Flight . | . . . Fastest Speed 50 | 50 105 105 Average Speed 148 | 152 152 118 Slowest Speed 160 | 160 160 130 Overloaded Moves . | . . . Propulsion Burnouts . | . . . Robots Hopped . | . . . Cave-ins Triggered . | . . . Exploration Rate (%) 32 | 7 83 6 Regions Visited 2 Branch Regions . Pre-discovered Areas . | . . . Known Exits Taken . | . . . Unknown Exits Taken 2 | 1 1 . Scrap Searched . | . . . Spaces Dug . | . . . Terrain Destroyed 3 | 1 . 2 Melee . | . . . Projectile . | . . . AOE 3 | 1 . 2 Terrain Rammed . | . . . Walls Destroyed . | . . . Machines Disabled . | . . . Actions | -11 -10 -9 --------- Run | Yrd Mat Mat Total 815 | 101 592 122 Wait 37 | 4 28 5 Move 622 | 77 480 65 Hop . | . . . Pick Up 19 | 5 4 10 Fast Attach 14 | 7 4 3 Attach 3 | . . 3 Detach 4 | 1 2 1 Swap 7 | . 6 1 Drop 11 | . 9 2 Fire 93 | 7 59 27 Melee . | . . . Ram 5 | . . 5 Kick . | . . . Crush . | . . . Escape Stasis . | . . . Rewire . | . . . Trap . | . . . Miscellaneous . | . . . Route ------- -11/Scrapyard -10/Materials (discovered 3 exits: [*Mat x2] / [*Min]) -9/Materials History --------- Turn | Location | Event 60 | -11/Scrapyard | Discovered new exit (range 13) 159 | -11/Scrapyard | Entered Materials 225 | -10/Materials | Discovered new exit (range 8) 300 | -10/Materials | Build established: Mutant 829 | -10/Materials | Discovered new exit (range 11) 980 | -10/Materials | Discovered new exit (range 12) 1119 | -10/Materials | Entered another Materials area 1119 | -9/Materials | Evolved 2 slots: Weapon x2 1293 | -9/Materials | Core integrity fell below 50% 1312 | -9/Materials | Self-destructed Last Messages --------------- 01249_ Chain reaction triggered in Imp. Ion Engine. 01249_ Shock Rifle destroyed. 01249_ Destroyed Shock Rifle. 01254_ Overheating: System interference. 01254_ Lgt. Assault Rifle temporarily disabled. 01256_ Acquired Lgt. Assault Rifle. 01259_ Critical hit (Burn: +37). 01259_ Ion Engine destroyed. 01259_ Acquired 15 matter. 01265_ Critical hit (Burn: +37). 01268_ Wheel destroyed. 01271_ Critical hit (Burn: +37). 01274_ Lgt. Assault Rifle destroyed. 01283_ Slammed into Y-45 Defender. 01283_ Com. Wheel destroyed. 01283_ Ion Engine destroyed. 01284_ Slammed into Y-45 Defender. 01291_ Destabilizing: System corrupted (+2). 01298_ Slammed into Y-45 Defender. 01310_ Y-45 Defender misfires. Map ----- +----------------------------------------------------+ | | | | | | | | | | | | | | | | | | | | | | | | | | | | | | | | | | | | | | | ?????????????????????????????????????????????????? | | ????????????????########?????????????????????????? | | ????????????????# [[ #?????????????????????????? | | ????????????????# #?????????????????????????? | | ????????????????# #?????#######?????????????? | | ???????????????## ####### #??#? ????????? | | ???????????????# @ # ????????? | | ???????????????# %%Y% ????????? | | ???????????????# % *[ /# ????????? | | ???????????????##########;%;## #?????????????? | | ????????????????????# % ## ##?????????????? | | ????????????????????#"""=*= ## #??????????????? | | ????????????????????#""" ## #??????????????? | | ????????????????????#""" ## #??????????????? | | ????????????????????# ## #??????????????? | | ????????????????????#""" ## #??????????????? | | ????????????????????#""" ## #??????????????? | | ????????????????????#""" #? ??????????????? | | ????????????????????# #? = ??????????????? | | ????????????????????##########? % #?????????????? | | ??????????????????????????????? [ ?????????????? | | ??????????????????????????????? #?????????????? | | ???????????????????????????????#####?????????????? | | ?????????????????????????????????????????????????? | | ?????????????????????????????????????????????????? | | ?????????????????????????????????????????????????? | | ?????????????????????????????????????????????????? | | ?????????????????????????????????????????????????? | | ?????????????????????????????????????????????????? | | ?????????????????????????????????????????????????? | | ?????????????????????????????????????????????????? | +----------------------------------------------------+ Best States ------------- Heat Dissipation 35 Energy Generation 10 Energy Capacity 250 Matter Stores 300 Matter Capacity 300 Sight Range 16 Terrain Scan Density 10 Armor Coverage 150 Evasion (%) 40 Recoil Reduction 2 Item Schematics ----------------- Huge Storage Unit | -10/Materials | Hacked Hcp. Storage Unit | -10/Materials | Hacked Robot Schematics ------------------ None Fabricated ------------ Nothing Alien Tech Used ----------------- None Achievements -------------- None Challenges ------------ None Game ------ Seed TransmissionRagnarokRay Manual? 0 Play Time 00:09:46 Cumulative 55.4 hours Start 2024.06.13 @ 16:30:05 End 2024.06.13 @ 16:37:48 Sessions 1 Manual Loads 0 Difficulty Rogue Special Mode None Game No. 28 Rogue 28 Adventurer 0 Explorer 0 Win Type - Total 1 Types 1/0/0/0/0/0/0/0/0 Lore% 30 Gallery% 46 Achievement% 39 Wizard Run 0 Options --------- Layout 0 ASCII 0 Keyboard 1 Movement Numpad Keybinds 0 Fullscreen 1 Font 18/SmallcapsGlow Map View 76x50 Zoom Use 0% Tactical HUD 1 Map Filters NONE Filters NONE Steam 1 RUN: 39219f11-0cbd-4516-b331-0ffe1ba938ee